fUST/lending_fUST_20240711
["ID","MTS","AMOUNT","RATE_DAILY","PERIOD"]
[331719723,1720695038879,-150.60173835,0.00025061,2]
[331719724,1720695038888,-81869.0276587,0.00025078,3]
[331719725,1720695038897,-4238.09847743,0.00025089,2]
[331719726,1720695038907,-499.99255164,0.00025096,2]
[331719727,1720695038916,-229.23922118,0.0002511,2]
[331719728,1720695038925,-301.44757931,0.00025148,2]
[331719729,1720695038935,-163738.055317,0.00025163,3]
[331719730,1720695038944,-500.0,0.00025172,2]
[331719731,1720695038954,-500.0,0.00025172,2]
[331719732,1720695038963,-197.95142425,0.00025172,2]
[331719733,1720695038972,-500.0,0.00025172,2]
[331719734,1720695038981,-251.99978034,0.00025172,2]
[331719735,1720695038994,-500.0,0.00025172,2]
[331719736,1720695039004,-500.0,0.00025172,2]
[331719737,1720695039013,-500.0,0.00025172,2]
[331719738,1720695039022,-500.0,0.00025172,2]
[331719739,1720695039031,-500.0,0.00025172,2]
[331719740,1720695039041,-500.0,0.00025172,2]
[331719741,1720695039050,-500.0,0.00025172,2]
[331719742,1720695039061,-500.0,0.00025172,2]
[331719743,1720695039072,-476.02037997,0.00025172,2]
[331719744,1720695039081,-165.93442581,0.00025172,2]
[331719745,1720695039091,-500.0,0.00025172,2]
[331719746,1720695039100,-500.0,0.00025172,2]
[331719747,1720695039109,-500.0,0.00025172,2]
[331719748,1720695039118,-500.0,0.00025172,2]
[331719749,1720695039127,-500.0,0.00025172,2]
[331719750,1720695039137,-250.0,0.00025172,2]
[331719751,1720695039146,-88888.0,0.00025173,3]
[331719752,1720695039156,-284.50722532,0.00025204,2]
[331719753,1720695039165,-4238.09847743,0.00025244,2]
[331719754,1720695039175,-362.37139857,0.00025249,2]
[331719755,1720695039185,-300.0,0.00025258,2]
[331719756,1720695039194,-81869.0276587,0.00025273,3]
[331719757,1720695039203,-349.34964807,0.00025277,2]
[331719758,1720695039212,-36899.57454385,0.00025283,2]
[331719759,1720695039221,-1000.0,0.00025305,2]
[331719760,1720695039230,-5044.41064472,0.0002531,2]
[331719761,1720695039242,-314.46226792,0.00025369,2]
[331719762,1720695039251,-1000.0,0.00025369,2]
[331719763,1720695039261,-4238.09847743,0.000254,2]
[331719764,1720695039270,-173.70369,0.000254,2]
[331719765,1720695039280,-823.0,0.00025456,2]
[331719766,1720695039289,-11700.41437444,0.000255,5]
[331719767,1720695039298,-178572.60965979,0.000255,2]
[331719795,1720695041609,-154.69833824,0.00022941,2]
[331719796,1720695041619,-14245.91,0.00025078,3]
[331719797,1720695041629,-210651.84370107,0.000255,2]
[331719798,1720695041638,-189.26423783,0.000255,2]
[331719799,1720695041648,-9183.28309987,0.000255,2]
[331719800,1720695041657,-172.101031,0.000255,7]
[331719801,1720695041667,-172.101031,0.000255,7]
[331719802,1720695041676,-226.260135,0.000255,7]
[331719803,1720695041685,-226.260135,0.000255,7]
[331719804,1720695041694,-151.0,0.000255,7]
[331719805,1720695041704,-151.0,0.000255,7]
[331719806,1720695041713,-2158.626496,0.000255,7]
[331719807,1720695041722,-2158.626496,0.000255,7]
[331719808,1720695041731,-151.0,0.000255,7]
[331719809,1720695041740,-974.284818,0.000255,2]
[331719810,1720695041749,-974.284818,0.000255,2]
[331719811,1720695041759,-172.101031,0.00025501,7]
[331719812,1720695041768,-172.101031,0.00025501,7]
[331719813,1720695041778,-226.260135,0.00025501,7]
[331719814,1720695041787,-226.260135,0.00025501,7]
[331719815,1720695041797,-151.0,0.00025501,7]
[331719816,1720695041806,-151.0,0.00025501,7]
[331719817,1720695041815,-2158.626496,0.00025501,7]
[331719818,1720695041824,-2158.626496,0.00025501,7]
[331719819,1720695041833,-151.0,0.00025501,7]
[331719820,1720695041842,-974.284818,0.00025501,2]
[331719821,1720695041852,-974.284818,0.00025501,2]
[331719822,1720695041861,-22154.39070766,0.00025501,2]
[331719823,1720695041871,-100000.0,0.00025501,2]
[331719824,1720695041880,-30000.0,0.00025501,2]
[331719825,1720695041890,-620.00006312,0.00025687,2]
[331719826,1720695041899,-620.00221628,0.0002575,2]
[331719827,1720695041909,-239.8848076,0.00025753,2]
[331719828,1720695041918,-93720.49582357,0.000258,3]
[331719884,1720695209954,155.00744126,0.00016255,2]
[331719926,1720695264750,294.51676518,0.00016255,2]
[331719928,1720695267363,1416.0192649,0.00016255,2]
[331719930,1720695273921,5341.04343432,0.00016255,2]
[331719953,1720695467449,284.50722532,0.00016255,2]
[331719977,1720695679465,199.70572721,0.00016255,2]
[331719986,1720695941208,10581.03119966,0.00016255,2]
[331719992,1720696080368,160.44361517,0.00016255,2]
[331719993,1720696087331,6987.56477081,0.00016255,2]
[331719994,1720696098498,258.146702,0.00017934,2]
[331719996,1720696159500,-876.87398945,0.00018182,2]
[331719997,1720696159560,-876.87398945,0.00018182,2]
[331719998,1720696159611,-337.96167598,0.00018182,2]
[331719999,1720696163870,6441.79530692,0.00016255,2]
[331720000,1720696184335,-908.29034512,0.00018182,2]
[331720001,1720696184384,-10.41783743,0.00018368,2]
[331720002,1720696184444,-239.58216257,0.00018368,2]
[331720003,1720696184493,-300.0,0.00018532,2]
[331720004,1720696184539,-293.07278303,0.00018532,2]
[331720258,1720696238336,-300.0,0.00018532,2]
[331720260,1720696238346,-300.0,0.00018532,2]
[331720261,1720696238357,-24900.0,0.00018533,2]
[331720263,1720696238369,-171.20794673,0.00018798,2]
[331720265,1720696238378,-5064.90830632,0.000188,2]
[331720267,1720696238390,-2132.69930736,0.00018899,2]
[331720269,1720696238400,-187.98618958,0.00018899,2]
[331720271,1720696238411,-1992.51989508,0.00018899,2]
[331720273,1720696238422,-277.68904932,0.00018899,2]
[331720274,1720696238432,-282.49013389,0.00018899,2]
[331720275,1720696238442,-348.45032102,0.00018899,2]
[331720276,1720696238451,-167.89204447,0.00018899,2]
[331720277,1720696238461,-469.98452207,0.000189,2]
[331720278,1720696238471,-247.9691298,0.00019041,2]
[331720279,1720696238482,-272.01576298,0.00019165,2]
[331720280,1720696238493,-391.80627157,0.00019165,2]
[331720281,1720696238504,-1274.35220727,0.00019703,2]
[331720282,1720696238514,-52150.85185038,0.000198,2]
[331720283,1720696238525,-154.69833824,0.0002,2]
[331720284,1720696238536,-420.0,0.0002021,2]
[331720286,1720696238546,-420.0,0.00020385,2]
[331720288,1720696238556,-750.0,0.00021096,2]
[331720289,1720696238565,-620.00227939,0.00021185,2]
[331720290,1720696238576,-166.666666,0.00021918,2]
[331720291,1720696238585,-5064.90830628,0.00021957,2]
[331720292,1720696238596,-587.0,0.00022039,2]
[331720293,1720696238605,-620.00011397,0.00022244,2]
[331720294,1720696238680,-587.0,0.00022424,2]
[331720295,1720696238691,-166.666666,0.00022431,2]
[331720296,1720696238701,-163.700293,0.00022532,2]
[331720297,1720696238713,-154.71377951,0.00022579,2]
[331720298,1720696238723,-166.666666,0.00022944,2]
[331720299,1720696238734,-695.26,0.00023346,3]
[331720300,1720696238745,-620.0000057,0.00023356,2]
[331720301,1720696238756,-166.666666,0.00023456,2]
[331720302,1720696238766,-469.98452207,0.000239,2]
[331720303,1720696238776,-166.666666,0.00023969,2]
[331720304,1720696238787,-264.0,0.00024034,2]
[331720305,1720696238796,-482.57891618,0.00024481,2]
[331720306,1720696238806,-166.666666,0.00024482,2]
[331720307,1720696238816,-620.00000028,0.00024524,2]
[331720308,1720696238825,-155.32790151,0.00024529,2]
[331720309,1720696238835,-358.0615749,0.00024641,2]
[331720310,1720696238845,-823.0,0.00024666,2]
[331720311,1720696238854,-293.33024516,0.00024737,2]
[331720312,1720696238864,-343.04715426,0.00024737,2]
[331720313,1720696238874,-500.0,0.00024737,2]
[331720314,1720696238884,-500.0,0.00024737,2]
[331720315,1720696238894,-500.0,0.00024737,2]
[331720316,1720696238904,-500.0,0.00024737,2]
[331720317,1720696238913,-208.30218365,0.00024737,2]
[331720318,1720696238923,-279.61269153,0.00024737,2]
[331720319,1720696238933,-500.0,0.00024737,2]
[331720320,1720696238944,-500.0,0.00024737,2]
[331720321,1720696238954,-500.0,0.00024737,2]
[331720322,1720696238963,-430.61949865,0.00024737,2]
[331720323,1720696238974,-500.0,0.00024737,2]
[331720324,1720696238984,-500.0,0.00024737,2]
[331720325,1720696238994,-500.0,0.00024737,2]
[331720326,1720696239005,-500.0,0.00024737,2]
[331720327,1720696239014,-500.0,0.00024737,2]
[331720328,1720696239024,-500.0,0.00024737,2]
[331720329,1720696239034,-500.0,0.00024737,2]
[331720330,1720696239044,-500.0,0.00024737,2]
[331720331,1720696239053,-500.0,0.00024737,2]
[331720332,1720696239063,-500.0,0.00024737,2]
[331720333,1720696239073,-500.0,0.00024737,2]
[331720334,1720696239083,-500.0,0.00024737,2]
[331720335,1720696239092,-279.22649617,0.00024737,2]
[331720336,1720696239101,-168.68859395,0.00024737,2]
[331720337,1720696239111,-16199.96760407,0.00024738,5]
[331720338,1720696239120,-107216.921692,0.00024738,3]
[331720339,1720696239129,-20198.34074,0.00024758,2]
[331720340,1720696239139,-6931.32057286,0.00024778,2]
[331720341,1720696239148,-6931.32057283,0.00024809,2]
[331720342,1720696239158,-6931.32057283,0.00024839,2]
[331720343,1720696239168,-107216.921692,0.00024847,3]
[331720344,1720696239178,-6931.32057283,0.0002487,2]
[331720345,1720696239188,-500.0,0.00024889,2]
[331720346,1720696239198,-500.0,0.00024889,2]
[331720347,1720696239209,-500.0,0.00024889,2]
[331720348,1720696239220,-251.99978034,0.00024889,2]
[331720349,1720696239231,-500.0,0.00024889,2]
[331720350,1720696239242,-197.95142425,0.00024889,2]
[331720351,1720696239252,-500.0,0.00024889,2]
[331720352,1720696239263,-500.0,0.00024889,2]
[331720353,1720696239274,-500.0,0.00024889,2]
[331720354,1720696239286,-500.0,0.00024889,2]
[331720355,1720696239296,-476.02037997,0.00024889,2]
[331720356,1720696239306,-500.0,0.00024889,2]
[331720357,1720696239315,-500.0,0.00024889,2]
[331720358,1720696239325,-500.0,0.00024889,2]
[331720359,1720696239334,-500.0,0.00024889,2]
[331720360,1720696239344,-500.0,0.00024889,2]
[331720361,1720696239356,-500.0,0.00024889,2]
[331720362,1720696239368,-165.93442581,0.00024889,2]
[331720363,1720696239378,-500.0,0.00024889,2]
[331720364,1720696239388,-500.0,0.00024889,2]
[331720365,1720696239398,-500.0,0.00024889,2]
[331720366,1720696239408,-250.0,0.00024889,2]
[331720367,1720696239417,-214433.843383,0.0002489,3]
[331720368,1720696239427,-358.0615749,0.00024893,2]
[331720369,1720696239437,-88888.0,0.000249,3]
[331720370,1720696239446,-6931.32057283,0.000249,2]
[331720371,1720696239456,-302.45563732,0.000249,2]
[331720372,1720696239466,-151.0,0.0002499,7]
[331720373,1720696239475,-151.0,0.0002499,7]
[331720374,1720696239485,-151.0,0.0002499,7]
[331720375,1720696239496,-1432.0,0.00025,2]
[331720376,1720696239505,-103899.33786038,0.00025,2]
[331720377,1720696239515,-14347.28784145,0.00025,2]
[331720378,1720696239525,-243.97778221,0.00025,2]
[331720379,1720696239534,-500.0,0.00025,2]
[331720380,1720696239543,-1144.72262457,0.00025,30]
[331720381,1720696239553,-779.427854,0.00025,2]
[331720382,1720696239563,-779.427854,0.00025,2]
[331720383,1720696239572,-153.0,0.00025068,2]
[331720384,1720696239582,-153.0,0.00025068,2]
[331720385,1720696239592,-153.0,0.00025068,2]
[331720386,1720696239602,-153.0,0.00025068,2]
[331720387,1720696239612,-153.0,0.00025068,2]
[331720388,1720696239621,-153.0,0.00025068,2]
[331720389,1720696239631,-153.0,0.00025068,2]
[331720390,1720696239641,-153.0,0.00025068,2]
[331720391,1720696239650,-153.0,0.00025068,2]
[331720392,1720696239659,-5064.90830628,0.00025114,2]
[331720393,1720696239669,-302.45563732,0.00025149,2]
[331720394,1720696239678,-358.0615749,0.0002518,2]
[331720395,1720696239688,-5044.41064471,0.00025216,2]
[331720396,1720696239698,-358.0615749,0.00025304,2]
[331720397,1720696239707,-302.45563732,0.00025398,2]
[331720398,1720696239717,-263.203,0.00025473,2]
[331720399,1720696239727,-503.0,0.00025473,2]
[331720400,1720696239737,-5044.41064472,0.00025479,2]
[331720401,1720696239746,-151.0,0.00025501,7]
[331720402,1720696239756,-151.0,0.00025501,7]
[331720404,1720696239765,-151.0,0.00025501,7]
[331720405,1720696239774,-151.0,0.00025501,7]
[331720407,1720696239784,-779.427854,0.00025501,2]
[331720410,1720696239794,-779.427854,0.00025501,2]
[331720415,1720696239851,-100000.0,0.00025501,2]
[331720416,1720696239861,-30000.0,0.00025501,2]
[331720417,1720696239870,-150.0,0.00025529,2]
[331720418,1720696239880,-301.44757931,0.00025534,2]
[331720419,1720696239890,-300.0,0.00025545,2]
[331720420,1720696239900,-358.06157491,0.00025594,2]
[331720421,1720696239910,-1000.0,0.00025624,2]
[331720422,1720696239919,-150.0,0.00025627,2]
[331720423,1720696239930,-348.26433958,0.00025647,2]
[331720424,1720696239939,-200.0,0.00025655,2]
[331720425,1720696239949,-1000.0,0.000257,2]
[331720426,1720696239958,-357.002,0.000257,2]
[331720428,1720696239967,-1406.0,0.000257,2]
[331720430,1720696239977,-620.00000001,0.0002575,2]
[331720433,1720696239987,-154.261413,0.0002578,7]
[331720435,1720696239996,-151.0,0.0002578,7]
[331720436,1720696240005,-349.34964807,0.00025784,2]
[331720437,1720696240015,-314.46226792,0.00025789,2]
[331720438,1720696240025,-151.0,0.0002579,7]
[331720440,1720696240035,-11700.41437444,0.000258,5]
[331720441,1720696240045,-154.69833824,0.000258,2]
[331720442,1720696240055,-764.10919398,0.000258,2]
[331720443,1720696240067,-189.30856144,0.000258,2]
[331720444,1720696240077,-225.81003448,0.000258,2]
[331720445,1720696240087,-281695.71628645,0.000258,3]
[331720447,1720696240101,-94756.01742587,0.000258,3]
[331720450,1720696240115,-8377.54254476,0.000258,3]
[331720461,1720696240349,6632.81156889,0.00016255,2]
[331720463,1720696241245,-2557.142157,0.00025,7]
[331720464,1720696241257,-2557.142157,0.00025501,7]
[331720465,1720696241268,-65093.52936829,0.000258,3]
[331720466,1720696241277,-428.44271624,0.000258,2]
[331720467,1720696241291,-261.65035706,0.000258,2]
[331720468,1720696241300,-181.008108,0.000258,7]
[331720469,1720696241310,-181.008108,0.000258,7]
[331720470,1720696241319,-151.0,0.000258,7]
[331720471,1720696241329,-151.0,0.000258,7]
[331720472,1720696241338,-151.0,0.000258,7]
[331720473,1720696241348,-173.70369,0.000258,2]
[331720474,1720696241358,-151.0,0.000258,7]
[331720475,1720696241367,-779.427854,0.000258,2]
[331720476,1720696241377,-779.427854,0.000258,2]
[331720477,1720696241387,-2557.142157,0.000258,7]
[331720478,1720696241396,-606.18817828,0.00025869,2]
[331720479,1720696241405,-499.99255164,0.00025869,2]
[331720480,1720696241415,-500.0,0.00026,2]
[331720481,1720696241424,-1000.0,0.00026,26]
[331720482,1720696241433,-150.60173835,0.00026183,2]
[331720483,1720696241442,-197.1231234,0.00026301,2]
[331720484,1720696241451,-153.0,0.00026356,2]
[331720485,1720696241461,-7458.94652043,0.0002649,2]
[331720486,1720696241470,-3000.0,0.000265,2]
[331720487,1720696241480,-3000.0,0.0002651,2]
[331720488,1720696241489,-3000.0,0.0002652,2]
[331720489,1720696241499,-150.0,0.00026529,2]
[331720490,1720696241511,-3000.0,0.0002653,2]
[331720491,1720696241520,-3000.0,0.0002654,2]
[331720492,1720696241529,-3000.0,0.0002655,2]
[331720493,1720696241538,-3000.0,0.0002656,2]
[331720494,1720696241547,-248.851,0.00026562,2]
[331720495,1720696241556,-500.0,0.00026567,7]
[331720496,1720696241566,-500.0,0.00026567,7]
[331720497,1720696241575,-500.0,0.00026567,7]
[331720498,1720696241585,-513.94,0.00026567,7]
[331720499,1720696241594,-500.0,0.00026567,7]
[331720500,1720696241603,-3000.0,0.0002657,2]
[331720501,1720696241613,-155.45465387,0.00026574,2]
[331720502,1720696241623,-745.89259557,0.00026574,2]
[331720503,1720696241632,-354.46681452,0.00026574,2]
[331720504,1720696241641,-354.46681452,0.00026574,2]
[331720505,1720696241650,-3000.0,0.0002658,2]
[331720506,1720696241660,-151.883,0.00026587,2]
[331720507,1720696241669,-211.742,0.00026587,2]
[331720508,1720696241678,-235.629,0.00026587,2]
[331720509,1720696241687,-150.0,0.00026587,2]
[331720510,1720696241696,-150.379,0.00026587,2]
[331720511,1720696241706,-3000.0,0.0002659,2]
[331720512,1720696241715,-3000.0,0.000266,2]
[331720513,1720696241725,-3000.0,0.0002661,2]
[331720514,1720696241734,-3000.0,0.0002662,2]
[331720515,1720696241744,-3000.0,0.0002663,2]
[331720516,1720696241753,-3000.0,0.0002664,2]
[331720517,1720696241767,-3000.0,0.0002665,2]
[331720518,1720696241776,-3000.0,0.0002666,2]
[331720519,1720696241786,-3000.0,0.0002667,2]
[331720520,1720696241798,-3000.0,0.0002668,2]
[331720521,1720696241807,-3000.0,0.0002669,2]
[331720522,1720696241816,-3000.0,0.000267,2]
[331720523,1720696241825,-3000.0,0.0002671,2]
[331720524,1720696241834,-3000.0,0.0002672,2]
[331720525,1720696241848,-3000.0,0.0002673,2]
[331720526,1720696241858,-3000.0,0.0002674,2]
[331720527,1720696241869,-4237.154211,0.0002675,2]
[331720528,1720696241879,-229.23922118,0.00026848,2]
[331720529,1720696241890,-293.58203646,0.00026848,2]
[331720530,1720696241901,-151.0,0.00026849,7]
[331720531,1720696241913,-151.0,0.00026849,7]
[331720532,1720696241924,-151.160005,0.00026849,7]
[331720533,1720696241934,-258.146702,0.00026901,2]
[331720534,1720696241944,-500.0,0.00027,2]
[331720535,1720696241955,-18962.37896892,0.00027,4]
[331720536,1720696241966,-400.0,0.00027024,2]
[331720537,1720696241976,-620.0,0.00027038,2]
[331720538,1720696241987,-1152.0,0.00027133,2]
[331720539,1720696241998,-750.0,0.00027195,2]
[331720540,1720696242008,-151.0,0.00027216,2]
[331720541,1720696242017,-449.12002876,0.00027394,2]
[331720542,1720696242029,-500.0,0.00027397,2]
[331720543,1720696242039,-500.0,0.00027397,7]
[331720544,1720696242049,-500.0,0.00027397,7]
[331720545,1720696242059,-500.0,0.00027397,7]
[331720546,1720696242069,-500.0,0.00027397,7]
[331720547,1720696242078,-515.26768314,0.00027397,7]
[331720548,1720696242087,-500.0,0.00027397,7]
[331720549,1720696242096,-500.0,0.00027397,7]
[331720550,1720696242105,-500.0,0.00027397,7]
[331720551,1720696242114,-632.29556562,0.00027397,7]
[331720552,1720696242123,-500.0,0.00027397,7]
[331720553,1720696242179,-500.0,0.00027397,7]
[331720554,1720696242189,-500.0,0.00027397,7]
[331720555,1720696242198,-181.008108,0.00027397,7]
[331720556,1720696242207,-181.008108,0.00027397,7]
[331720557,1720696242217,-511.01571177,0.00027397,7]
[331720558,1720696242227,-181.008108,0.00027397,7]
[331720559,1720696242237,-181.008108,0.00027397,7]
[331720560,1720696242246,-500.0,0.00027397,7]
[331720561,1720696242255,-500.0,0.00027397,7]
[331720562,1720696242265,-500.0,0.00027397,2]
[331720563,1720696242275,-500.0,0.00027397,7]
[331720564,1720696242287,-540.5,0.00027397,7]
[331720565,1720696242297,-500.65,0.00027397,7]
[331720566,1720696242306,-518.09,0.00027397,7]
[331720567,1720696242315,-500.0,0.00027397,7]
[331720568,1720696242326,-629.41427439,0.00027397,7]
[331720569,1720696242335,-500.0,0.00027397,7]
[331720570,1720696242345,-500.0,0.00027397,7]
[331720571,1720696242355,-500.0,0.00027397,7]
[331720572,1720696242367,-500.0,0.00027397,7]
[331720573,1720696242376,-500.0,0.00027397,7]
[331720574,1720696242386,-506.21113113,0.00027397,7]
[331720575,1720696242395,-500.0,0.00027397,7]
[331720576,1720696242404,-500.0,0.00027397,7]
[331720577,1720696242414,-508.78410784,0.00027397,7]
[331720578,1720696242423,-504.21279752,0.00027397,7]
[331720579,1720696242432,-511.084096,0.00027397,7]
[331720580,1720696242441,-500.0,0.00027397,7]
[331720581,1720696242452,-507.15737686,0.00027397,7]
[331720582,1720696242462,-500.0,0.00027397,7]
[331720583,1720696242471,-500.0,0.00027397,7]
[331720584,1720696242480,-500.0,0.00027397,7]
[331720585,1720696242489,-500.0,0.00027397,7]
[331720586,1720696242498,-500.0,0.00027397,7]
[331720587,1720696242507,-175.5408137,0.00027397,7]
[331720588,1720696242517,-509.25492053,0.00027397,7]
[331720589,1720696242527,-500.0,0.00027397,7]
[331720590,1720696242536,-504.89500772,0.00027397,7]
[331720591,1720696242545,-500.0,0.00027397,7]
[331720592,1720696242554,-502.13604143,0.00027397,7]
[331720593,1720696242564,-500.0,0.00027397,7]
[331720594,1720696242573,-154.66746495,0.00027397,7]
[331720595,1720696242582,-500.0,0.00027397,7]
[331720596,1720696242591,-517.15648468,0.00027397,7]
[331720597,1720696242601,-511.27534355,0.00027397,7]
[331720598,1720696242610,-509.32352373,0.00027397,7]
[331720599,1720696242620,-519.68300131,0.00027397,7]
[331720600,1720696242629,-511.39439832,0.00027397,7]
[331720601,1720696242639,-508.87232539,0.00027397,7]
[331720602,1720696242649,-500.0,0.00027397,7]
[331720603,1720696242659,-474.82168607,0.00027397,7]
[331720604,1720696242668,-94.68403243,0.00027397,7]
[331720628,1720696243391,9660.0,0.00016,4]
[331720664,1720696252884,-2557.142157,0.00025,7]
[331720665,1720696252894,-365.08694341,0.00027397,7]
[331720666,1720696252904,-380.02280024,0.00027397,7]
[331720667,1720696252913,-500.0,0.00027397,7]
[331720668,1720696252924,-500.0,0.00027397,7]
[331720669,1720696252934,-500.0,0.00027397,7]
[331720670,1720696252943,-500.0,0.00027397,7]
[331720671,1720696252953,-500.0,0.00027397,7]
[331720672,1720696252963,-500.0,0.00027397,7]
[331720673,1720696252973,-500.0,0.00027397,7]
[331720674,1720696252983,-500.0,0.00027397,7]
[331720675,1720696252992,-621.05335439,0.00027397,7]
[331720676,1720696253002,-500.0,0.00027397,7]
[331720677,1720696253013,-503.66230659,0.00027397,7]
[331720678,1720696253023,-500.0,0.00027397,7]
[331720679,1720696253033,-515.11182804,0.00027397,7]
[331720680,1720696253042,-500.0,0.00027397,7]
[331720681,1720696253052,-500.0,0.00027397,7]
[331720682,1720696253061,-500.0,0.00027397,7]
[331720683,1720696253071,-516.75697011,0.00027397,7]
[331720684,1720696253081,-578.44407192,0.00027397,7]
[331720685,1720696253091,-291.8435049,0.00027397,7]
[331720686,1720696253101,-500.0,0.00027397,7]
[331720687,1720696253110,-503.92547854,0.00027397,7]
[331720688,1720696253121,-515.21584444,0.00027397,7]
[331720689,1720696253131,-511.27066309,0.00027397,7]
[331720690,1720696253140,-529.21350697,0.00027397,7]
[331720691,1720696253150,-506.88250024,0.00027397,7]
[331720692,1720696253160,-502.91551831,0.00027397,7]
[331720693,1720696253170,-500.0,0.00027397,7]
[331720694,1720696253180,-649.47,0.00027397,7]
[331720695,1720696253191,-221.62805921,0.00027397,7]
[331720696,1720696253202,-500.0,0.00027397,7]
[331720697,1720696253213,-511.16768208,0.00027397,7]
[331720698,1720696253224,-865.95,0.00027397,7]
[331720699,1720696253234,-4454.34,0.00027397,7]
[331720700,1720696253245,-640.5086711,0.00027397,7]
[331720701,1720696253256,-516.85066936,0.00027397,7]
[331720702,1720696253266,-500.0,0.00027397,7]
[331720703,1720696253276,-202.80589411,0.00027397,7]
[331720704,1720696253287,-504.12112158,0.00027397,7]
[331720705,1720696253302,-500.0,0.00027397,7]
[331720706,1720696253312,-516.79184332,0.00027397,7]
[331720707,1720696253324,-500.0,0.00027397,7]
[331720708,1720696253336,-505.42514594,0.00027397,7]
[331720709,1720696253347,-514.37163194,0.00027397,7]
[331720710,1720696253361,-1578.77,0.00027397,7]
[331720711,1720696253371,-500.0,0.00027397,7]
[331720712,1720696253383,-500.0,0.00027397,7]
[331720713,1720696253394,-500.0,0.00027397,7]
[331720714,1720696253406,-500.0,0.00027397,7]
[331720715,1720696253417,-500.0,0.00027397,7]
[331720716,1720696253427,-500.0,0.00027397,7]
[331720717,1720696253438,-500.0,0.00027397,7]
[331720718,1720696253447,-500.0,0.00027397,7]
[331720719,1720696253458,-500.0,0.00027397,7]
[331720720,1720696253467,-500.0,0.00027397,7]
[331720721,1720696253478,-517.52742557,0.00027397,7]
[331720722,1720696253489,-500.0,0.00027397,7]
[331720723,1720696253500,-500.0,0.00027397,7]
[331720724,1720696253513,-500.0,0.00027397,7]
[331720725,1720696253523,-500.0,0.00027397,7]
[331720726,1720696253533,-500.0,0.00027397,7]
[331720727,1720696253542,-500.0,0.00027397,7]
[331720728,1720696253552,-500.0,0.00027397,7]
[331720729,1720696253563,-500.0,0.00027397,7]
[331720730,1720696253574,-483.63792122,0.00027397,7]
[331720731,1720696253584,-563.68815582,0.00027397,7]
[331720732,1720696253594,-500.0,0.00027397,7]
[331720733,1720696253603,-634.34,0.00027397,7]
[331720734,1720696253613,-714.35,0.00027397,7]
[331720735,1720696253622,-577.65,0.00027397,7]
[331720736,1720696253632,-1500.0,0.00027397,7]
[331720737,1720696253641,-500.0,0.00027397,7]
[331720738,1720696253652,-514.4141306,0.00027397,7]
[331720739,1720696253662,-502.3533115,0.00027397,7]
[331720740,1720696253671,-1071.09,0.00027397,7]
[331720741,1720696253681,-500.0,0.00027397,7]
[331720742,1720696253690,-520.79851205,0.00027397,7]
[331720743,1720696253700,-500.0,0.00027397,7]
[331720744,1720696253710,-500.0,0.00027397,7]
[331720745,1720696253719,-590.09016064,0.00027397,7]
[331720746,1720696253729,-504.70123126,0.00027397,7]
[331720747,1720696253741,-548.31550788,0.00027397,7]
[331720748,1720696253752,-824.72,0.00027397,7]
[331720749,1720696253764,-151.0,0.00027397,7]
[331720750,1720696253774,-223.365942,0.00027397,7]
[331720751,1720696253784,-513.23643489,0.00027397,7]
[331720752,1720696253793,-546.03283777,0.00027397,7]
[331720753,1720696253803,-513.80202433,0.00027397,7]
[331720754,1720696253812,-566.53,0.00027397,7]